bitfinex/quotes_SOLUSD_20251202
["timestamp","ask_amount","ask_price","bid_price","bid_amount"]
[1764639783297,9.36,127.3,127.28,7.8566939]
[1764639784492,8.7,127.3,127.29,0.68]
[1764639784778,16.55467775,127.32,127.29,0.68]
[1764639784992,17.21467775,127.32,127.28,17.77779464]
[1764639785193,17.21467775,127.32,127.28,8.5366939]
[1764639785505,17.21467775,127.32,127.29,0.68]
[1764639785886,8.7,127.32,127.29,0.68]
[1764639786198,8.7,127.32,127.29,8.53552418]
[1764639787000,8.7,127.32,127.27,7.85701243]
[1764639787001,9.61210649,127.31,127.27,7.85701243]
[1764639787300,15.94037243,127.31,127.27,7.85701243]
[1764639787480,0.66,127.3,127.27,7.85701243]
[1764639787669,0.66,127.3,127.27,8.53701243]
[1764639790297,8.51561492,127.3,127.27,0.68]
[1764639790691,9.36,127.29,127.26,7.95772238]
[1764639790896,9.36,127.29,127.26,8.63772238]
[1764639791079,7.85392595,127.33,127.28,6.32826594]
[1764639791288,8.7,127.32,127.29,6.32826594]
[1764639791581,8.95210649,127.31,127.27,3.08]
[1764639791787,9.66210649,127.31,127.27,0.68]
[1764639792002,17.51723244,127.31,127.27,8.53729403]
[1764639793015,9.66210649,127.31,127.27,14.18555997]
[1764639793175,9.66210649,127.31,127.28,0.67]
[1764639793379,17.51700517,127.31,127.28,0.67]
[1764639794105,9.66210649,127.31,127.28,0.67]
[1764639794309,9.66210649,127.31,127.28,8.52653686]
[1764639794601,17.51707294,127.31,127.28,8.52653686]
[1764639794806,17.51707294,127.31,127.27,14.18533272]
[1764639794982,0.71,127.3,127.27,8.52706678]
[1764639795187,8.95210649,127.31,127.28,0.67]
[1764639795411,17.51697479,127.31,127.28,0.67]
[1764639797102,8.7,127.3,127.28,0.67]
[1764639797297,8.7,127.3,127.27,10.92729443]
[1764639798019,9.41,127.3,127.27,0.67]
[1764639798508,17.26586163,127.3,127.27,0.67]
[1764639798805,15.28037243,127.28,127.26,0.1]
[1764639799105,17.65210649,127.27,127.26,0.1]
[1764639799292,18.36210649,127.27,127.26,0.1]
[1764639800101,24.69037243,127.27,127.26,0.1]
[1764639800288,18.36210649,127.27,127.26,0.1]
[1764639800479,26.21941771,127.27,127.26,0.1]
[1764639800682,7.85649649,127.29,127.26,0.77]
[1764639800904,8.7,127.28,127.26,0.77]
[1764639801198,8.7,127.28,127.26,7.09826594]
[1764639801403,8.7,127.3,127.27,6.32826594]
[1764639801622,8.80994492,127.32,127.29,6.32826594]
[1764639801906,8.7,127.32,127.29,6.32826594]
[1764639802101,8.7,127.32,127.29,6.99826594]
[1764639802497,8.7,127.32,127.29,14.85391145]
[1764639803398,8.7,127.32,127.29,8.52564551]
[1764639803906,8.7,127.32,127.26,0.1]
[1764639803907,8.95210649,127.31,127.26,0.1]
[1764639804086,9.66210649,127.31,127.27,7.85731122]
[1764639804485,8.7,127.32,127.28,6.99826594]
[1764639804783,16.55427618,127.32,127.28,6.99826594]
[1764639805107,17.26427618,127.32,127.28,0.67]
[1764639805602,8.95210649,127.3,127.27,7.85731122]
[1764639805792,8.7,127.29,127.26,7.95776689]
[1764639805991,17.26619058,127.29,127.26,7.95776689]
[1764639806792,8.7,127.29,127.26,8.62776689]
[1764639807199,9.41,127.29,127.26,8.62776689]
[1764639807713,9.41,127.29,127.26,7.95776689]
[1764639809717,11.08958652,127.27,127.26,0.1]
[1764639809885,19.93174809,127.27,127.26,0.1]
[1764639810084,20.64174809,127.27,127.26,0.1]
[1764639810290,28.49905931,127.27,127.26,0.1]
[1764639811411,26.21941771,127.27,127.26,0.1]
[1764639811608,28.49905931,127.27,127.26,0.1]
[1764639821697,44.80792331,127.27,127.26,0.1]
[1764639823457,44.80792331,127.27,127.23,0.1]
[1764639823458,27.54061209,127.24,127.23,0.1]
[1764639823725,36.24061209,127.24,127.23,0.1]
[1764639823900,36.96061209,127.24,127.23,0.1]
[1764639825322,44.81977587,127.24,127.23,0.1]
[1764639825822,44.81977587,127.24,127.23,1e-08]
[1764639836639,44.09977587,127.24,127.23,1e-08]
[1764639836841,43.9576143,127.24,127.23,0.68000001]
[1764639837028,44.6776143,127.24,127.23,1e-08]
[1764639837334,44.81977587,127.24,127.23,1e-08]
[1764639843347,44.6776143,127.24,127.23,1e-08]
[1764639843533,44.81977587,127.24,127.23,1e-08]
[1764639844324,16.55916378,127.24,127.23,0.68000001]
[1764639844844,25.51127027,127.24,127.23,0.68000001]
[1764639845261,25.3691087,127.24,127.23,0.68000001]
[1764639845750,25.51127027,127.24,127.23,0.68000001]
[1764639848358,8.7,127.24,127.23,0.68000001]
[1764639848530,20.12237826,127.27,127.23,8.5397815]
[1764639848729,8.95210649,127.26,127.23,8.5397815]
[1764639848926,12.5167138,127.26,127.24,0.68]
[1764639849132,8.7,127.25,127.24,0.68]
[1764639849432,21.2167138,127.25,127.24,0.68]
[1764639850552,8.95210649,127.24,127.23,0.68000001]
[1764639850752,12.5167138,127.24,127.23,0.68000001]
[1764639850954,8.95210649,127.24,127.23,0.68000001]
[1764639852843,20.37587758,127.24,127.23,0.68000001]
[1764639853346,16.81127027,127.24,127.23,0.68000001]
[1764639854530,8.95210649,127.24,127.23,0.68000001]
[1764639854737,7.8570361,127.28,127.23,0.68000001]
[1764639854945,3.56460731,127.25,127.23,0.68000001]
[1764639855262,17.65210649,127.24,127.23,0.68000001]
[1764639855761,17.65210649,127.24,127.23,1e-08]
[1764639855958,21.2167138,127.24,127.23,1e-08]
[1764639856261,21.2167138,127.24,127.23,0.69000001]
[1764639856457,29.07587758,127.24,127.23,1e-08]
[1764639856764,29.07587758,127.24,127.23,0.69000001]
[1764639856976,25.51127027,127.24,127.23,0.69000001]
[1764639857851,29.07587758,127.24,127.23,0.69000001]
[1764639858435,17.65210649,127.24,127.23,0.69000001]
[1764639858653,25.51127027,127.24,127.23,0.69000001]
[1764639859538,17.50994492,127.24,127.23,0.69000001]
[1764639859739,17.65210649,127.24,127.23,0.69000001]
[1764639861862,8.7,127.24,127.23,0.69000001]
[1764639864883,8.7,127.26,127.23,8.5497815]
[1764639865485,8.7,127.26,127.24,0.69]
[1764639867759,16.55803245,127.26,127.24,0.69]
[1764639870169,13.1867138,127.25,127.23,1e-08]
[1764639870375,21.2167138,127.24,127.23,1e-08]
[1764639872305,29.07587758,127.24,127.23,1e-08]
[1764639873692,21.2167138,127.24,127.23,1e-08]
[1764639874506,29.07587758,127.24,127.23,1e-08]
[1764639876398,29.74587758,127.24,127.23,1e-08]
[1764639878102,17.50994492,127.24,127.23,0.71000001]
[1764639878407,25.51127027,127.24,127.23,1e-08]
[1764639879404,8.7,127.24,127.23,0.71000001]
[1764639883724,8.7,127.25,127.23,0.71000001]
[1764639885328,8.7,127.25,127.23,8.56964458]
[1764639885832,8.7,127.25,127.24,0.67]
[1764639888434,8.7,127.25,127.23,2.40000001]
[1764639888747,8.7,127.25,127.24,0.67]
[1764639893041,8.95210649,127.28,127.24,8.52916378]
[1764639893243,17.65210649,127.28,127.24,14.49377109]
[1764639893450,17.65210649,127.28,127.25,0.67]
[1764639894354,25.50904268,127.28,127.25,0.67]
[1764639895244,17.65210649,127.28,127.25,8.52849721]
[1764639895542,25.50886957,127.28,127.25,8.52849721]
[1764639895750,26.21886957,127.28,127.26,0.67]
[1764639895948,25.50886957,127.28,127.26,0.67]
[1764639896142,17.65210649,127.28,127.26,0.67]
[1764639897258,25.50897005,127.28,127.26,0.67]
[1764639898435,8.7,127.28,127.26,0.67]
[1764639900460,9.41,127.28,127.25,3.07]
[1764639900656,3.56460731,127.26,127.23,0.67000001]
[1764639900960,8.7,127.25,127.23,0.67000001]
[1764639903759,3.56460731,127.24,127.23,1e-08]
[1764639904346,20.83330458,127.25,127.23,1e-08]
[1764639904948,20.12330458,127.25,127.23,0.67000001]
[1764639905364,20.83330458,127.25,127.23,0.67000001]
[1764639906865,4.27460731,127.24,127.23,1e-08]
[1764639907058,3.56460731,127.24,127.23,1e-08]
[1764639907368,4.27460731,127.24,127.23,1e-08]
[1764639907667,20.83330458,127.25,127.23,1e-08]
[1764639908344,19.55011038,127.25,127.23,1e-08]
[1764639909564,2.99141311,127.24,127.23,1e-08]
[1764639909877,19.80268338,127.24,127.23,1e-08]
[1764639912391,8.95210649,127.24,127.23,1e-08]
[1764639912568,9.65210649,127.24,127.23,1e-08]
[1764639913081,17.51127027,127.24,127.23,1e-08]
[1764639913660,19.79268338,127.24,127.23,1e-08]
[1764639913862,8.95210649,127.24,127.23,1e-08]
[1764639914062,18.84003602,127.25,127.23,0.71000001]
[1764639915270,19.54003602,127.25,127.23,1e-08]
[1764639916278,11.68141311,127.25,127.23,1e-08]
[1764639916485,8.7,127.25,127.24,0.71]
[1764639918960,16.81127027,127.24,127.23,1e-08]
[1764639919164,10.98141311,127.25,127.23,1e-08]
[1764639919384,19.54006776,127.25,127.23,1e-08]
[1764639919561,18.84006776,127.25,127.23,0.71000001]
[1764639922382,18.84006776,127.25,127.23,0.71000001]
[1764639922687,16.55865465,127.25,127.23,0.71000001]
[1764639923185,16.308864,127.28,127.23,0.71000001]
[1764639923386,88.23370557,127.32,127.26,2.28141311]
[1764639923387,7.85484251,127.31,127.26,2.28141311]
[1764639923687,7.85484251,127.31,127.27,0.71]
[1764639923688,18.83625562,127.31,127.27,0.71]
[1764639923896,19.53625562,127.31,127.27,0.71]
[1764639924187,18.83625562,127.31,127.27,0.71]
[1764639924789,18.83625562,127.31,127.27,8.56704255]
[1764639924979,16.55484251,127.31,127.27,8.56704255]
[1764639925179,16.55484251,127.31,127.28,0.71]
[1764639925374,16.55484251,127.31,127.27,8.56704255]
[1764639925375,17.25484251,127.31,127.27,8.56704255]
[1764639925588,17.25484251,127.31,127.28,0.71]
[1764639927470,0.7,127.3,127.27,8.56704255]
[1764639928377,11.12357468,127.29,127.26,7.85785867]
[1764639928782,0.7,127.28,127.26,7.85785867]
[1764639928984,11.12357468,127.29,127.26,7.85785867]
[1764639929183,0.7,127.28,127.26,7.85785867]
[1764639930007,8.55672956,127.28,127.25,8.5683225]
[1764639930288,8.7,127.27,127.24,10.96910142]
[1764639930494,9.41,127.27,127.24,10.96910142]
[1764639930695,8.7,127.27,127.25,0.71]
[1764639931195,9.41,127.27,127.24,10.96910142]
[1764639931396,9.41,127.27,127.25,0.71]
[1764639931397,8.7,127.27,127.25,0.71]
[1764639931780,9.41,127.27,127.24,10.96910142]
[1764639932000,9.41,127.27,127.24,8.56910142]
[1764639932192,8.7,127.27,127.24,7.85910142]
[1764639932407,8.7,127.27,127.25,0.71]
[1764639932710,8.7,127.3,127.26,2.28141311]
[1764639933169,8.7,127.3,127.27,2.99141311]
[1764639933372,8.7,127.3,127.28,0.71]
[1764639934097,8.7,127.3,127.28,8.56653293]
[1764639935511,8.7,127.3,127.29,0.71]
[1764639935998,8.7,127.3,127.28,8.56653293]
[1764639936298,0.2,127.37,127.29,2.99141311]
[1764639936602,8.9,127.37,127.32,2.28141311]
[1764639936788,2.28141311,127.34,127.3,0.71]
[1764639936986,10.98141311,127.34,127.3,0.71]
[1764639937184,11.69141311,127.34,127.3,0.71]
[1764639937696,10.98141311,127.34,127.31,7.85484251]
[1764639937897,19.54441085,127.34,127.3,8.56535457]
[1764639938399,19.54441085,127.34,127.31,0.71]
[1764639939012,3.13357468,127.33,127.29,8.56589551]
[1764639939189,3.13357468,127.33,127.29,7.85589551]
[1764639939393,3.13357468,127.33,127.3,0.71]
[1764639939821,0.14216157,127.33,127.3,0.71]
[1764639941319,0.14216157,127.33,127.3,8.56523789]
[1764639942012,0.14216157,127.33,127.31,0.71]
[1764639944819,11.65141311,127.34,127.31,8.56457954]
[1764639945518,3.09357468,127.33,127.3,8.56545954]
[1764639945726,2.42357468,127.33,127.3,8.56545954]
[1764639945922,2.42357468,127.33,127.3,7.85545954]
[1764639946124,0.14216157,127.33,127.31,0.71]
[1764639948124,0.81216157,127.33,127.3,0.71]
[1764639949030,3.09357468,127.33,127.3,8.56527755]
[1764639951132,2.95141311,127.32,127.28,3.11]
[1764639951432,2.95141311,127.32,127.29,0.71]
[1764639951632,0.67,127.32,127.29,0.71]
[1764639952037,8.7,127.31,127.28,7.85643319]
[1764639952429,8.7,127.31,127.29,0.71]
[1764639952636,8.7,127.31,127.29,8.56595154]
[1764639955154,9.37,127.31,127.29,8.56595154]
[1764639955343,8.7,127.31,127.29,8.56595154]
[1764639957045,8.7,127.33,127.3,0.71]
[1764639957246,9.37,127.33,127.3,8.56534581]
[1764639958446,17.22366547,127.33,127.3,8.56534581]
[1764639959128,17.22366547,127.33,127.3,0.71]
[1764639961141,8.7,127.33,127.3,8.56492863]
[1764639961551,8.7,127.33,127.31,0.71]
[1764639963362,18.59027711,127.36,127.31,8.56438265]
[1764639963568,8.7,127.35,127.31,10.84579576]
[1764639963766,8.7,127.35,127.32,0.71]
[1764639964265,8.7,127.35,127.29,7.85567236]
[1764639964266,2.28141311,127.33,127.29,7.85567236]
[1764639964474,2.28141311,127.31,127.29,7.85567236]
[1764639964770,8.84216157,127.32,127.29,8.56567236]
[1764639964986,0.67,127.31,127.29,7.85567236]
[1764639965967,8.52495848,127.31,127.28,0.71]
[1764639966274,8.52495848,127.31,127.27,8.56693644]
[1764639966275,10.30637159,127.31,127.27,8.56693644]
[1764639966480,10.30637159,127.31,127.26,10.15764566]
[1764639966481,2.28141311,127.29,127.26,10.15764566]
[1764639966646,10.98141311,127.29,127.26,7.85764566]
[1764639966846,10.98141311,127.29,127.26,8.56764566]
[1764639967047,2.28141311,127.27,127.24,7.85916378]
[1764639967246,10.98141311,127.26,127.24,7.85916378]
[1764639967669,2.42357468,127.25,127.23,1e-08]
[1764639967874,2.42357468,127.24,127.23,1e-08]
[1764639968093,11.2335196,127.24,127.23,1e-08]
[1764639968448,19.09268338,127.24,127.23,1e-08]
[1764639969777,18.59268338,127.24,127.23,1e-08]
[1764639970168,19.26268338,127.24,127.23,1e-08]
[1764639970368,20.90429274,127.24,127.23,1e-08]
[1764639970866,20.23429274,127.24,127.23,1e-08]
[1764639971680,20.37645431,127.24,127.23,1e-08]
[1764639972396,12.51729053,127.24,127.23,1e-08]
[1764639972578,20.37645431,127.24,127.23,1e-08]
[1764639972974,11.56650939,127.24,127.23,1e-08]
[1764639976102,12.26518404,127.26,127.23,0.72000001]
[1764639976838,8.7,127.26,127.23,0.72000001]
[1764639977512,8.7,127.26,127.23,8.57972871]
[1764639977831,8.7,127.27,127.23,8.57972871]
[1764639978007,8.7,127.27,127.24,0.72]
[1764639978517,12.26518404,127.27,127.23,1e-08]
[1764639978832,12.98518404,127.27,127.24,0.72]
[1764639979723,20.84279099,127.27,127.24,0.72]
[1764639980627,20.12279099,127.27,127.24,0.72]
[1764639980919,16.55760695,127.27,127.24,0.72]
[1764639981121,8.7,127.27,127.24,8.5786465]
[1764639981299,7.85656166,127.29,127.24,12.14383054]
[1764639981499,8.7,127.29,127.26,3.56518404]
[1764639981710,8.7,127.29,127.27,7.85731122]
[1764639981908,8.7,127.29,127.26,7.85772794]
[1764639982118,12.26518404,127.29,127.26,0.72]
[1764639982311,8.7,127.29,127.27,0.72]
[1764639982610,8.7,127.29,127.24,31.07225728]
[1764639982821,8.7,127.29,127.25,0.72]
[1764639983925,20.84135552,127.29,127.25,8.57821062]
[1764639985009,4.28518404,127.28,127.24,7.85916378]
[1764639985212,4.28518404,127.28,127.24,8.57916378]
[1764639986315,4.28518404,127.27,127.24,7.85916378]
[1764639986514,8.7,127.26,127.24,7.85916378]
[1764639987014,8.7,127.26,127.24,8.57916378]
[1764639989328,8.7,127.26,127.23,7.8597815]
[1764639989628,8.7,127.26,127.23,8.5797815]
[1764639989832,8.7,127.26,127.24,0.72]
[1764639990430,8.7,127.26,127.24,0.7]
[1764639991218,16.55794884,127.26,127.24,0.7]
[1764639991531,16.55794884,127.26,127.23,0.70000001]
[1764639992637,8.7,127.26,127.23,8.55962906]
[1764639993013,8.7,127.28,127.24,0.7]
[1764639993430,9.36,127.28,127.24,0.7]
[1764639993933,8.7,127.28,127.24,4.26518404]
[1764639994106,8.7,127.28,127.25,7.85854616]
[1764639994306,8.7,127.28,127.25,8.55854616]
[1764639994526,9.36,127.28,127.25,8.55854616]
[1764639994707,17.21672898,127.28,127.25,0.7]
[1764639994907,16.55672898,127.28,127.25,0.7]
[1764639995622,17.21672898,127.28,127.25,0.7]
[1764639995935,20.12191302,127.28,127.25,0.7]
[1764639996617,8.7,127.28,127.25,8.55839202]
[1764639997314,12.26518404,127.28,127.25,8.55839202]
[1764639997521,20.12190752,127.28,127.25,8.55839202]
[1764639999438,8.7,127.28,127.26,0.7]
[1764639999625,8.7,127.3,127.26,4.26518404]
[1764640000031,8.7,127.3,127.27,0.7]
[1764640000236,9.36,127.3,127.27,0.7]
[1764640002745,16.55553539,127.3,127.27,0.7]
[1764640003520,17.22553539,127.3,127.27,0.7]
[1764640003928,16.55553539,127.3,127.27,0.7]
[1764640005144,8.95210649,127.27,127.24,2.3]
[1764640005320,8.95210649,127.27,127.23,1e-08]
[1764640005321,12.26518404,127.26,127.23,1e-08]
[1764640005520,12.93518404,127.26,127.23,0.66000001]
[1764640005722,4.23518404,127.25,127.23,1e-08]
[1764640005929,8.7,127.24,127.23,1e-08]
[1764640007845,12.93518404,127.24,127.23,1e-08]
[1764640009148,9.37,127.24,127.23,1e-08]
[1764640009852,12.93518404,127.24,127.23,1e-08]
[1764640010248,20.79434782,127.24,127.23,1e-08]
[1764640010950,29.74645431,127.24,127.23,1e-08]
[1764640012929,26.18127027,127.24,127.23,1e-08]
[1764640017062,29.74645431,127.24,127.23,1e-08]
[1764640019165,8.7,127.24,127.23,1e-08]
[1764640019470,29.74645431,127.24,127.23,1e-08]
[1764640022142,25.51127027,127.24,127.23,1e-08]
[1764640022365,16.55916378,127.24,127.23,0.66000001]
[1764640022556,20.12434782,127.24,127.23,1e-08]
[1764640024649,16.55916378,127.24,127.23,1e-08]
[1764640026254,29.60429274,127.24,127.23,1e-08]
[1764640027082,29.74645431,127.24,127.23,1e-08]
[1764640031575,46.05531831,127.24,127.23,1e-08]
[1764640032355,44.77295736,127.24,127.23,1e-08]
[1764640033153,32.9779727,127.24,127.23,0.68000001]
[1764640033356,17.50994492,127.26,127.23,0.68000001]
[1764640033562,25.36787357,127.26,127.23,0.68000001]
[1764640033765,8.7,127.26,127.23,2.9628231]
[1764640033954,150.0,127.33,127.23,2.9628231]
[1764640033955,10.1376656,127.31,127.25,2.28282309]
[1764640034167,8.7,127.3,127.26,10.14041167]
[1764640034572,8.7,127.3,127.27,0.68]
[1764640035257,16.555763,127.3,127.27,0.68]
[1764640036380,8.7,127.3,127.27,0.68]
[1764640037295,16.55562131,127.3,127.27,0.68]
[1764640037800,18.8384444,127.3,127.27,0.68]
[1764640039488,16.55562131,127.3,127.27,0.68]
[1764640039801,18.8384444,127.3,127.27,0.68]
[1764640040815,16.55562131,127.3,127.27,0.68]
[1764640041908,16.55562131,127.3,127.27,2.96282309]
[1764640042283,16.55562131,127.3,127.28,0.68]
[1764640042596,16.55562131,127.3,127.26,7.85786027]
[1764640042597,19.4984444,127.3,127.26,8.53786027]
[1764640042813,19.4984444,127.3,127.27,0.68]
[1764640043111,2.42498466,127.29,127.24,10.14159498]
[1764640043308,10.98282309,127.28,127.25,0.68]
[1764640043687,8.7,127.28,127.25,0.68]
[1764640044191,16.55716765,127.28,127.25,0.68]
[1764640045629,3.08498466,127.27,127.23,0.68000001]
[1764640045810,8.7,127.26,127.23,0.68000001]
[1764640047623,16.55825768,127.26,127.23,0.68000001]
[1764640050116,18.84108077,127.26,127.23,0.68000001]
[1764640050916,19.53108077,127.26,127.23,0.68000001]
[1764640051807,18.84108077,127.26,127.23,0.68000001]
[1764640056043,8.7,127.26,127.23,0.68000001]
[1764640057021,16.55799249,127.26,127.23,0.68000001]
[1764640057428,18.84081558,127.26,127.23,0.68000001]
[1764640057940,16.55799249,127.26,127.23,0.68000001]
[1764640058842,18.84081558,127.26,127.23,0.68000001]
[1764640059344,16.55799249,127.26,127.23,0.68000001]
[1764640059846,18.84081558,127.26,127.23,0.68000001]
[1764640060342,16.55799249,127.26,127.23,0.68000001]
[1764640066949,7.85607667,127.29,127.25,2.28282309]
[1764640067151,16.55607667,127.29,127.25,2.28282309]
[1764640067326,16.55607667,127.29,127.26,0.69]
[1764640068747,8.7,127.29,127.27,2.28282309]
[1764640069127,16.55485122,127.31,127.28,2.97282309]
[1764640069632,16.55485122,127.31,127.29,0.69]
[1764640069849,8.7,127.31,127.29,0.69]
[1764640072152,16.55510544,127.31,127.26,7.85750784]
[1764640072342,16.55510544,127.31,127.27,0.69]
[1764640072650,16.55510544,127.31,127.27,2.97282309]
[1764640073155,16.55510544,127.31,127.28,0.69]
[1764640074357,0.71,127.3,127.27,0.69]
[1764640074558,30.4850348,127.31,127.27,0.69]
[1764640074761,8.7,127.29,127.27,0.69]
[1764640074950,8.7,127.29,127.27,2.97282309]
[1764640075458,8.7,127.29,127.28,0.69]
[1764640075765,8.7,127.31,127.28,10.82951699]
[1764640076058,8.7,127.31,127.28,8.5466939]
[1764640076243,9.41,127.31,127.28,0.69]
[1764640076752,0.14216157,127.3,127.25,10.14117147]
[1764640077062,8.7,127.29,127.26,0.69]
[1764640077847,16.5561872,127.29,127.26,0.69]
[1764640078641,17.2661872,127.29,127.26,0.69]
[1764640078959,16.5561872,127.29,127.26,0.69]
[1764640079143,16.55620771,127.29,127.26,0.69]
[1764640080570,17.26620771,127.29,127.25,8.54850605]
[1764640080755,17.26620771,127.29,127.26,0.69]
[1764640081142,19.5490308,127.29,127.26,0.69]
[1764640082268,17.26620771,127.29,127.26,0.69]
[1764640083049,16.55620771,127.29,127.26,0.69]
[1764640083368,17.26620771,127.29,127.26,0.69]
[1764640089163,8.7,127.29,127.26,10.83057468]
[1764640089375,8.7,127.29,127.27,0.69]
[1764640090377,8.7,127.29,127.27,8.54728546]
[1764640090956,8.7,127.29,127.28,0.69]
[1764640091760,8.7,127.29,127.28,2.97282309]
[1764640091967,0.69,127.36,127.28,2.97282309]
[1764640092282,9.39,127.36,127.31,2.28282309]
[1764640092456,8.7,127.36,127.32,3.55776326]
[1764640092668,8.7,127.36,127.34,3.55776326]
[1764640092856,8.7,127.36,127.35,0.66]
[1764640096792,12.94776326,127.36,127.32,0.66]
[1764640096994,12.94776326,127.36,127.33,0.66]
[1764640097185,4.24776326,127.35,127.32,0.66]
[1764640097497,4.24776326,127.35,127.31,0.66]
[1764640097498,3.55776326,127.34,127.31,0.66]
[1764640097795,8.68,127.33,127.31,0.66]
[1764640098898,8.68,127.33,127.3,0.66]
[1764640099071,8.68,127.33,127.31,0.66]
[1764640100592,8.68,127.33,127.29,11.41361754]
[1764640100593,9.37,127.33,127.29,12.07361754]
[1764640100787,9.37,127.33,127.3,0.66]
[1764640100998,8.68,127.33,127.3,0.66]
[1764640102190,9.37,127.33,127.3,8.51537226]
[1764640102694,8.68,127.33,127.31,0.66]
[1764640105006,17.22393989,127.33,127.3,0.66]
[1764640105713,4.24776326,127.32,127.29,7.85552299]
[1764640105922,4.24776326,127.32,127.29,8.51552299]
[1764640106207,17.22393989,127.33,127.3,0.66]
[1764640106505,20.78170315,127.33,127.3,0.66]
[1764640106997,3.55776326,127.32,127.3,0.66]
[1764640107201,17.22393989,127.33,127.3,0.66]
[1764640107404,3.55776326,127.32,127.3,0.66]
[1764640108418,3.55776326,127.32,127.29,8.51552299]
[1764640109012,3.55776326,127.32,127.29,7.85552299]
[1764640109215,3.55776326,127.32,127.3,0.66]
[1764640109517,20.78170315,127.33,127.3,0.66]
[1764640109995,0.69,127.32,127.29,7.85552299]
[1764640110195,4.24776326,127.32,127.29,0.69]
[1764640111315,12.10203644,127.32,127.29,0.69]
[1764640112418,3.55776326,127.3,127.27,0.69]
[1764640112606,12.23776326,127.29,127.25,7.85827689]
[1764640112807,12.23776326,127.29,127.26,0.69]
[1764640113120,20.7641984,127.29,127.26,0.69]
[1764640113324,20.0941984,127.29,127.26,8.54785695]
[1764640113627,16.53643514,127.29,127.26,8.54785695]
[1764640113930,16.53643514,127.29,127.27,0.69]
[1764640114818,8.68,127.29,127.27,0.69]
[1764640115601,3.55776326,127.32,127.27,12.10500738]
[1764640115930,8.68,127.32,127.27,12.10500738]
[1764640116102,12.90776326,127.32,127.28,0.69]
[1764640116703,0.67,127.31,127.28,8.54666845]
[1764640117010,3.55776326,127.29,127.26,0.69]
[1764640117212,8.68,127.28,127.26,0.69]
[1764640117607,11.41233998,127.32,127.26,4.24776326]
[1764640117809,8.68,127.31,127.27,3.55776326]
[1764640117998,8.68,127.31,127.27,4.24776326]
[1764640118200,8.68,127.31,127.28,0.69]
[1764640119400,8.68,127.31,127.28,8.54666183]
[1764640119701,8.68,127.31,127.29,0.69]
[1764640121130,16.53497221,127.31,127.29,0.69]
[1764640121929,16.53497221,127.31,127.28,7.85666183]
[1764640121930,37.08159947,127.31,127.27,0.71]
[1764640123609,36.40159947,127.31,127.27,0.71]
[1764640123818,0.68,127.3,127.27,0.71]
[1764640124219,32.84383621,127.31,127.27,0.71]
[1764640124426,37.08159947,127.31,127.27,0.71]
[1764640130333,20.77273547,127.31,127.27,0.71]
[1764640131635,20.77273547,127.31,127.27,8.56709841]
[1764640131817,17.21497221,127.31,127.28,0.71]
[1764640132129,16.53497221,127.31,127.28,0.71]
[1764640133632,7.66520676,127.34,127.28,12.12433832]
[1764640133824,8.68,127.33,127.3,3.55776326]
[1764640134218,8.68,127.33,127.31,0.71]
[1764640136727,8.68,127.33,127.31,12.12243319]
[1764640137033,8.68,127.33,127.31,31.75953946]
[1764640137232,8.68,127.33,127.31,0.71]
[1764640138817,8.68,127.33,127.31,4.26776326]
[1764640139335,8.68,127.35,127.33,7.85360873]
[1764640139725,8.68,127.35,127.33,8.56360873]
[1764640140534,8.68,127.35,127.34,0.71]
[1764640141332,8.68,127.35,127.33,7.85360873]
[1764640141531,8.68,127.35,127.33,8.56360873]
[1764640142834,8.68,127.35,127.34,0.71]
[1764640144846,9.36,127.35,127.32,28.1997895]
[1764640145047,9.36,127.35,127.32,8.56422557]
[1764640146548,4.23776326,127.34,127.31,8.56460799]
[1764640146752,0.68,127.34,127.31,8.56460799]
[1764640148650,3.55776326,127.32,127.28,7.85643142]